[Event "RUS-ch Blitz Women 2018"]
[Site "Sochi"]
[Date "2018.10.07"]
[Round "10"]
[White "Bodnaruk, Anastasia"]
[Black "Kovanova, Baira"]
[Result "1-0"]
[ECO "C70"]
[WhiteElo "2423"]
[BlackElo "2350"]
[Annotator "NA RC"]
[PlyCount "159"]
[EventDate "2018.10.07"]
[EventType "swiss"]
[EventCountry "RUS"]
[SourceTitle "playchess.com"]
[Source "ChessBase"]
[SourceQuality "1"]
[TimeControl "180+2"]

1. e4 {[%emt 0:00:00]} e5 {[%emt 0:00:00]} 2. Nf3 {[%emt 0:00:00]} Nc6 {[%emt 0:00:00]} 3. Bb5 {[%emt 0:00:00]} a6 {[%emt 0:00:00]} 4. Ba4 {[%emt 0:00:01]} Nge7 {[%emt 0:00:05]} 5. c3 {[%emt 0:00:03]} g6 {[%emt 0:00:01]} 6. d4 {[%emt 0:00:02] C70: Ruy Lopez: 3...a6 4 Ba4, Norwegian and Delayed Schliemann} exd4 {[%emt 0:00:01]} 7. cxd4 {[%emt 0:00:00]} b5 {[%emt 0:00:01]} 8. Bc2 {[%emt 0:00:11]} (8. d5 bxa4 9. dxc6 Nxc6 10. Qxa4 Bg7 11. O-O O-O 12. Nc3 Rb8 13. Bg5 f6 {0-1 (27) Hou,Y (2658)-Ponomariov,R (2686) Shenzhen 2018}) 8... d6 {[%emt 0:00:02]} 9. h3 {[%emt 0:00:06]} Bg7 {[%emt 0:00:02]} 10. O-O {[%emt 0:00:01]} O-O {[%emt 0:00:03]} 11. Nc3 {[%emt 0:00:02]} Na5 {[%emt 0:00:21]} 12. b3 {[%emt 0:00:20]} c5 {[%emt 0:00:04]} 13. Bb2 {[%emt 0:00:03]} cxd4 $146 {[%emt 0:00:22]} ({Predecessor:} 13... c4 14. b4 Nac6 15. a3 Bd7 16. d5 {½-½ (42) Yazici,U (1696)-Buzas,B (1931) Budva 2013}) 14. Nxd4 {[%emt 0:00:03]} Bb7 {[%emt 0:00:03]} 15. Re1 {[%emt 0:00:23]} Rc8 {[%emt 0:00:30]} 16. Qd2 {[%emt 0:00:06]} Nac6 {[%emt 0:00:48]} 17. Nce2 {[%emt 0:00:20]} Nxd4 {[%emt 0:00:08]} 18. Bxd4 {[%emt 0:00:03]} Bxd4 19. Nxd4 {[%emt 0:00:01]} d5 {[%emt 0:00:17]} 20. e5 {[%emt 0:00:05]} Nc6 {[%emt 0:00:08]} 21. Nf3 {[%emt 0:00:17]} Qe7 {[%emt 0:00:04]} 22. Bd3 {[%emt 0:00:29]} Rfd8 {[%emt 0:00:08]} 23. Rad1 {[%emt 0:00:04]} Nb4 {[%emt 0:00:02]} 24. Bb1 {[%emt 0:00:01]} Nc6 {[%emt 0:00:08]} 25. Qh6 $2 {[%emt 0:00:02]} Qf8 {[%emt 0:00:05]} 26. Qh4 {[%emt 0:00:02]} Qe7 {[%emt 0:00:01] [#]} 27. Qh6 {[%emt 0:00:06]} (27. Ng5 $1 $18 h5 28. e6) 27... Qf8 {[%emt 0:00:02]} 28. Qf4 {[%emt 0:00:01]} Ne7 {[%emt 0:00:06]} 29. Nd4 {[%emt 0:00:03]} Qg7 {[%emt 0:00:08]} 30. Re3 {[%emt 0:00:05]} Nc6 {[%emt 0:00:01] [#]} 31. Nf5 $1 {[%emt 0:00:10]} Qf8 {[%emt 0:00:04]} 32. Nh6+ {[%emt 0:00:02]} Kg7 {[%emt 0:00:05]} 33. Rf3 {[%emt 0:00:18]} f5 {[%emt 0:00:06]} 34. exf6+ {[%emt 0:00:02]} Kh8 {[%emt 0:00:01]} 35. Ng4 $18 {[%emt 0:00:18]} d4 {[%emt 0:00:02]} 36. Bd3 {[%emt 0:00:08]} Qf7 {[%emt 0:00:01]} 37. Nh6 {[%emt 0:00:01]} Qf8 {[%emt 0:00:01]} 38. f7 {[%emt 0:00:02]} Qg7 {[%emt 0:00:01]} 39. Re1 {[%emt 0:00:04]} Nb4 {[%emt 0:00:02]} 40. Rg3 {[%emt 0:00:05]} Nd5 {[%emt 0:00:01]} 41. Qg5 {[%emt 0:00:02]} Rf8 {[%emt 0:00:02]} 42. Be4 {[%emt 0:00:03]} Rcd8 {[%emt 0:00:02]} 43. Bd3 {[%emt 0:00:06]} Nb4 {[%emt 0:00:01]} 44. Bb1 {[%emt 0:00:00]} d3 {[%emt 0:00:01]} 45. Rd1 {[%emt 0:00:01]} d2 {[%emt 0:00:02]} 46. Rxd2 {[%emt 0:00:03]} Rxd2 47. Qxd2 {[%emt 0:00:00]} Qa1 {[%emt 0:00:04]} 48. Kh2 {[%emt 0:00:01]} Nd5 {[%emt 0:00:03]} 49. Be4 {[%emt 0:00:04]} Qe5 {[%emt 0:00:01]} 50. Bxd5 {[%emt 0:00:04]} Bxd5 {[%emt 0:00:02]} 51. f4 {[%emt 0:00:02]} Qg7 {[%emt 0:00:11]} 52. Nf5 {[%emt 0:00:03]} Qxf7 {[%emt 0:00:01]} 53. Qd4+ {[%emt 0:00:00]} Qf6 {[%emt 0:00:01]} 54. Qxd5 {[%emt 0:00:03]} Qxf5 {[%emt 0:00:03]} 55. Qd4+ {[%emt 0:00:02]} Qf6 {[%emt 0:00:01]} 56. Rd3 {[%emt 0:00:02]} Kg7 {[%emt 0:00:02]} 57. g3 {[%emt 0:00:03]} Rf7 {[%emt 0:00:02]} 58. Qxf6+ {[%emt 0:00:01]} Rxf6 59. Kg2 Rc6 {[%emt 0:00:04]} 60. Rd2 {[%emt 0:00:01]} Kf6 {[%emt 0:00:02]} 61. Kf3 {[%emt 0:00:02]} Rc3+ {[%emt 0:00:01]} 62. Kf2 {[%emt 0:00:03]} Rc6 {[%emt 0:00:01]} 63. g4 {[%emt 0:00:00]} h5 {[%emt 0:00:02]} 64. Kg2 {[%emt 0:00:04]} hxg4 {[%emt 0:00:01]} 65. hxg4 {[%emt 0:00:01]} Re6 {[%emt 0:00:03]} 66. Kf3 {[%emt 0:00:01]} Rc6 {[%emt 0:00:00]} 67. Rd3 {[%emt 0:00:00]} b4 {[%emt 0:00:03]} 68. Rd4 {[%emt 0:00:03]} a5 {[%emt 0:00:05]} 69. Rd5 {[%emt 0:00:01]} Ra6 {[%emt 0:00:00]} 70. Rb5 {[%emt 0:00:01]} Ke6 {[%emt 0:00:03]} 71. Ke4 {[%emt 0:00:01]} Kf6 {[%emt 0:00:01]} 72. g5+ {[%emt 0:00:03]} Ke6 {[%emt 0:00:01]} 73. Rb8 {[%emt 0:00:08]} Ke7 {[%emt 0:00:04]} 74. Rb7+ {[%emt 0:00:02]} Kd8 {[%emt 0:00:05]} 75. f5 {[%emt 0:00:02]} gxf5+ {[%emt 0:00:02]} 76. Kxf5 {[%emt 0:00:01]} Ke8 {[%emt 0:00:01]} 77. g6 {[%emt 0:00:02]} Kf8 {[%emt 0:00:01]} 78. Kg5 {[%emt 0:00:01]} Rd6 {[%emt 0:00:04]} 79. Kh6 {[%emt 0:00:02]} Rd1 {[%emt 0:00:02]} 80. g7+ {[%emt 0:00:01]} 1-0

[Event "RUS-ch Blitz Women 2018"]
[Site "Sochi"]
[Date "2018.10.07"]
[Round "10"]
[White "Vasilevich, Tatjana"]
[Black "Semenova, Elena"]
[Result "1-0"]
[ECO "A81"]
[WhiteElo "2360"]
[BlackElo "2152"]
[Annotator "NA"]
[PlyCount "80"]
[EventDate "2018.10.07"]
[EventType "swiss"]
[EventCountry "RUS"]
[SourceTitle "playchess.com"]
[Source "ChessBase"]
[SourceQuality "1"]
[TimeControl "180+2"]

1. d4 {[%emt 0:00:00]} f5 {[%emt 0:00:00]} 2. g3 {[%emt 0:00:01]} Nf6 {[%emt 0:00:00]} 3. Bg2 d6 4. c4 {[%emt 0:00:04]} e5 {[%emt 0:00:05]} 5. dxe5 {[%emt 0:00:11]} dxe5 {[%emt 0:00:00]} 6. Nf3 {[%emt 0:00:03]} Qxd1+ {[%emt 0:00:02]} 7. Kxd1 {[%emt 0:00:01]} Nbd7 {[%emt 0:00:17]} 8. Nc3 {[%emt 0:00:08]} c6 {[%emt 0:00:05]} 9. Kc2 {[%emt 0:00:02]} Bc5 {[%emt 0:00:12]} 10. e3 {[%emt 0:00:09]} Ng4 {[%emt 0:00:15]} 11. h3 {[%emt 0:00:35]} Ngf6 {[%emt 0:00:27]} 12. a3 {[%emt 0:00:09]} a5 {[%emt 0:00:03]} 13. b3 {[%emt 0:00:02]} e4 {[%emt 0:00:07]} 14. Ne1 {[%emt 0:00:38]} Ne5 {[%emt 0:00:03]} 15. Bb2 {[%emt 0:00:01]} Bd6 {[%emt 0:00:32]} 16. Rd1 {[%emt 0:00:03]} Ke7 {[%emt 0:00:01]} 17. Na4 {[%emt 0:00:09]} Nfd7 {[%emt 0:00:14]} 18. Kb1 {[%emt 0:00:16]} Rd8 {[%emt 0:00:29]} 19. Rd2 {[%emt 0:00:03]} Bc7 {[%emt 0:00:12]} 20. Nc2 {[%emt 0:00:07]} Nd3 {[%emt 0:00:09]} 21. Bxg7 {[%emt 0:00:04]} N7e5 {[%emt 0:00:06]} 22. Nd4 {[%emt 0:00:09]} Bd7 {[%emt 0:00:07]} 23. Nc3 {[%emt 0:00:05]} a4 {[%emt 0:00:03]} 24. Bxe5 {[%emt 0:00:06]} Bxe5 {[%emt 0:00:03]} 25. b4 {[%emt 0:00:08]} Bxd4 {[%emt 0:00:07]} 26. exd4 Be6 27. d5 {[%emt 0:00:17]} cxd5 {[%emt 0:00:01]} 28. cxd5 {[%emt 0:00:01]} Bxd5 {[%emt 0:00:02]} 29. g4 {[%emt 0:00:11]} Nf4 {[%emt 0:00:09]} 30. Nxd5+ {[%emt 0:00:04]} Nxd5 {[%emt 0:00:05]} 31. gxf5 {[%emt 0:00:04]} Nc3+ {[%emt 0:00:03]} 32. Kc2 {[%emt 0:00:00]} Rdc8 {[%emt 0:00:01]} 33. Kb2 {[%emt 0:00:03]} Kf6 {[%emt 0:00:01]} 34. Rc1 {[%emt 0:00:03]} Nb5 {[%emt 0:00:03]} 35. Bxe4 {[%emt 0:00:03]} Rxc1 36. Kxc1 {[%emt 0:00:01]} Rc8+ {[%emt 0:00:04]} 37. Kb2 {[%emt 0:00:01]} Re8 {[%emt 0:00:00]} 38. Bxb7 {[%emt 0:00:05]} Rf8 {[%emt 0:00:03]} 39. Be4 {[%emt 0:00:02]} Ke5 {[%emt 0:00:00]} 40. Rd1 {[%emt 0:00:01]} Nd4 {[%emt 0:00:02]} 1-0

[Event "RUS-ch Blitz Women 2018"]
[Site "Sochi"]
[Date "2018.10.07"]
[Round "10"]
[White "Voit, Daria"]
[Black "Shuvalova, Polina"]
[Result "1-0"]
[ECO "A05"]
[WhiteElo "2352"]
[BlackElo "2421"]
[Annotator "RC"]
[PlyCount "63"]
[EventDate "2018.10.07"]
[EventType "swiss"]
[EventCountry "RUS"]
[SourceTitle "playchess.com"]
[Source "ChessBase"]
[SourceQuality "1"]
[TimeControl "180+2"]

1. Nf3 {[%emt 0:00:00]} Nf6 {[%emt 0:00:00]} 2. c4 {[%emt 0:00:00]} e6 {[%emt 0:00:00]} 3. g3 {[%emt 0:00:00]} d5 {[%emt 0:00:00]} 4. Bg2 {[%emt 0:00:01]} d4 {[%emt 0:00:02]} 5. O-O {[%emt 0:00:02]} c5 {[%emt 0:00:00]} 6. d3 {[%emt 0:00:01]} Nc6 {[%emt 0:00:01]} 7. e3 {[%emt 0:00:01]} Be7 {[%emt 0:00:02]} 8. exd4 {[%emt 0:00:02]} cxd4 {[%emt 0:00:01]} 9. Re1 {[%emt 0:00:02]} O-O {[%emt 0:00:01]} 10. Na3 {[%emt 0:00:08]} Nd7 {[%emt 0:00:09]} 11. Nc2 {[%emt 0:00:02]} e5 {[%emt 0:00:03]} 12. a3 {[%emt 0:00:05]} a5 {[%emt 0:00:01]} 13. b3 {[%emt 0:00:01]} Re8 {[%emt 0:00:05]} 14. Rb1 {[%emt 0:00:02]} Bf8 {[%emt 0:00:07]} 15. b4 {[%emt 0:00:01]} axb4 {[%emt 0:00:01]} 16. axb4 {[%emt 0:00:01]} Bd6 {[%emt 0:00:14]} 17. Nd2 {[%emt 0:00:38]} h6 {[%emt 0:00:04]} 18. c5 {[%emt 0:00:02]} Bf8 {[%emt 0:00:07]} 19. Nc4 {[%emt 0:00:02]} Qc7 {[%emt 0:00:10]} 20. Bd2 {[%emt 0:00:18]} Nf6 {[%emt 0:00:09]} 21. f4 {[%emt 0:00:18]} Bg4 {[%emt 0:00:08]} 22. Qc1 {[%emt 0:00:02]} Nd7 {[%emt 0:01:00]} 23. h3 {[%emt 0:00:33]} Be6 {[%emt 0:00:09]} 24. N2a3 {[%emt 0:00:07]} f6 {[%emt 0:00:12]} 25. Nb5 {[%emt 0:00:03]} Qb8 {[%emt 0:00:08]} 26. Kh2 {[%emt 0:00:19]} Ra2 {[%emt 0:00:08]} 27. Ncd6 {[%emt 0:00:08]} Rd8 {[%emt 0:00:03]} 28. Rb2 {[%emt 0:00:02]} Ra4 {[%emt 0:00:05]} 29. f5 {[%emt 0:00:15]} Bf7 {[%emt 0:00:18]} 30. Nxf7 {[%emt 0:00:02]} Kxf7 {[%emt 0:00:01]} 31. Qc4+ {[%emt 0:00:01]} Ke8 {[%emt 0:00:05]} 32. Qe6+ {[%emt 0:00:01]} 1-0

[Event "RUS-ch Blitz Women 2018"]
[Site "Sochi"]
[Date "2018.10.07"]
[Round "10"]
[White "Belenkaya, Dina"]
[Black "Goltseva, Ekaterina"]
[Result "1-0"]
[ECO "C47"]
[WhiteElo "2329"]
[BlackElo "2169"]
[Annotator "NA"]
[PlyCount "143"]
[EventDate "2018.10.07"]
[EventType "swiss"]
[EventCountry "RUS"]
[SourceTitle "playchess.com"]
[Source "ChessBase"]
[SourceQuality "1"]
[TimeControl "180+2"]

1. e4 {[%emt 0:00:00]} e5 {[%emt 0:00:00]} 2. Nf3 {[%emt 0:00:00]} Nc6 {[%emt 0:00:00]} 3. Nc3 {[%emt 0:00:01]} Nf6 {[%emt 0:00:00]} 4. d4 {[%emt 0:00:01]} exd4 $11 {[%emt 0:00:05] LiveBook: 3543 Partien} 5. Nxd4 {[%emt 0:00:01]} Bb4 {[%emt 0:00:01]} 6. Nxc6 {[%emt 0:00:01]} bxc6 {[%emt 0:00:01]} 7. Bd3 {[%emt 0:00:02]} d5 {[%emt 0:00:03]} 8. exd5 {[%emt 0:00:01]} cxd5 {[%emt 0:00:01]} 9. O-O {[%emt 0:00:02]} O-O {[%emt 0:00:02]} 10. Bg5 {[%emt 0:00:02]} c6 {[%emt 0:00:01]} 11. Qf3 {[%emt 0:00:01]} Bd6 {[%emt 0:00:07]} 12. Rfe1 {[%emt 0:00:04]} Be6 {[%emt 0:00:15]} 13. h3 {[%emt 0:00:06]} Rb8 {[%emt 0:00:05]} 14. Rab1 {[%emt 0:00:08]} h6 {[%emt 0:00:08]} 15. Bf4 {[%emt 0:00:05]} Rb4 {[%emt 0:00:15]} 16. Ne2 {[%emt 0:00:03]} Qb8 {[%emt 0:00:15]} 17. Bxd6 {[%emt 0:00:01]} Qxd6 {[%emt 0:00:01]} 18. c3 {[%emt 0:00:03]} Rb6 {[%emt 0:00:04]} 19. Nd4 {[%emt 0:00:09]} c5 {[%emt 0:00:13]} 20. Nf5 {[%emt 0:01:10]} Bxf5 {[%emt 0:00:03]} 21. Qxf5 {[%emt 0:00:07]} Rfb8 {[%emt 0:00:09]} 22. b3 {[%emt 0:00:07]} a5 {[%emt 0:00:03]} 23. Bc2 {[%emt 0:00:04]} R6b7 {[%emt 0:00:28]} 24. Rbd1 {[%emt 0:00:16]} Rd8 {[%emt 0:00:29]} 25. Re3 {[%emt 0:00:20]} g6 {[%emt 0:00:28]} 26. Qf3 {[%emt 0:00:05]} Re7 {[%emt 0:00:05]} 27. Rde1 {[%emt 0:00:04]} Rde8 {[%emt 0:00:02]} 28. Bd3 {[%emt 0:00:14]} Kg7 {[%emt 0:00:01]} 29. Bb5 {[%emt 0:00:03]} Rxe3 {[%emt 0:00:05]} 30. fxe3 {[%emt 0:00:04]} Re6 {[%emt 0:00:10]} 31. Rd1 {[%emt 0:00:09]} Qe5 {[%emt 0:00:02]} 32. c4 {[%emt 0:00:06]} dxc4 {[%emt 0:00:07]} 33. Bxc4 {[%emt 0:00:02]} Qxe3+ {[%emt 0:00:02]} 34. Qxe3 {[%emt 0:00:03]} Rxe3 {[%emt 0:00:01]} 35. Rd6 {[%emt 0:00:05]} Re1+ {[%emt 0:00:09]} 36. Kh2 {[%emt 0:00:02]} Ra1 {[%emt 0:00:03]} 37. a4 {[%emt 0:00:01]} Ne4 {[%emt 0:00:05]} 38. Rd7 {[%emt 0:00:02]} Nd2 {[%emt 0:00:04]} 39. Rxf7+ {[%emt 0:00:03]} Kh8 {[%emt 0:00:02]} 40. Rf8+ {[%emt 0:00:09]} Kg7 {[%emt 0:00:02]} 41. Rf7+ {[%emt 0:00:01]} Kh8 {[%emt 0:00:00]} 42. Be6 {[%emt 0:00:10]} Nf1+ {[%emt 0:00:03]} 43. Kg1 {[%emt 0:00:01]} Nd2+ {[%emt 0:00:02]} 44. Kf2 {[%emt 0:00:01]} Rb1 {[%emt 0:00:03]} 45. Rf8+ {[%emt 0:00:05]} Kg7 {[%emt 0:00:01]} 46. Rb8 {[%emt 0:00:01]} c4 {[%emt 0:00:02]} 47. Ke2 {[%emt 0:00:05]} cxb3 {[%emt 0:00:03]} 48. Kxd2 {[%emt 0:00:02]} Rb2+ {[%emt 0:00:01]} 49. Kc3 {[%emt 0:00:01]} Rxg2 {[%emt 0:00:02]} 50. Kxb3 {[%emt 0:00:00]} Kf6 {[%emt 0:00:02]} 51. Bd7 {[%emt 0:00:01]} Rd2 {[%emt 0:00:01]} 52. Rb7 {[%emt 0:00:02]} Rd4 {[%emt 0:00:02]} 53. Ra7 {[%emt 0:00:02]} h5 {[%emt 0:00:04]} 54. Bc8 {[%emt 0:00:02]} Rd5 {[%emt 0:00:01]} 55. Ra6+ {[%emt 0:00:02]} Kg5 {[%emt 0:00:01]} 56. Be6 {[%emt 0:00:03]} Re5 {[%emt 0:00:01]} 57. Bf7 {[%emt 0:00:01]} Re3+ {[%emt 0:00:02]} 58. Kc4 {[%emt 0:00:01]} Rxh3 {[%emt 0:00:02]} 59. Rxg6+ {[%emt 0:00:01]} Kf4 {[%emt 0:00:01]} 60. Kb5 {[%emt 0:00:04]} Re3 {[%emt 0:00:05]} 61. Kxa5 {[%emt 0:00:02]} h4 {[%emt 0:00:02]} 62. Kb4 {[%emt 0:00:05]} Re4+ {[%emt 0:00:02]} 63. Kb5 {[%emt 0:00:01]} Re5+ {[%emt 0:00:01]} 64. Kb6 {[%emt 0:00:02]} h3 {[%emt 0:00:02]} 65. Rh6 {[%emt 0:00:04]} Kg3 {[%emt 0:00:02]} 66. a5 {[%emt 0:00:02]} h2 {[%emt 0:00:03]} 67. a6 {[%emt 0:00:01]} Re7 {[%emt 0:00:03]} 68. Bd5 {[%emt 0:00:01]} Rd7 {[%emt 0:00:02]} 69. Bc6 {[%emt 0:00:01]} Rd8 {[%emt 0:00:02]} 70. a7 {[%emt 0:00:01]} Kf2 {[%emt 0:00:02]} 71. Rxh2+ {[%emt 0:00:01]} Kg3 72. Rb2 1-0

[Event "RUS-ch Blitz Women 2018"]
[Site "Sochi"]
[Date "2018.10.07"]
[Round "10"]
[White "Guseva, Marina"]
[Black "Diakonova, Ekaterina"]
[Result "1/2-1/2"]
[ECO "A58"]
[WhiteElo "2292"]
[BlackElo "2236"]
[Annotator "NA"]
[PlyCount "118"]
[EventDate "2018.10.07"]
[EventType "swiss"]
[EventCountry "RUS"]
[SourceTitle "playchess.com"]
[Source "ChessBase"]
[SourceQuality "1"]
[TimeControl "180+2"]

1. d4 {[%emt 0:00:00]} Nf6 {[%emt 0:00:00]} 2. c4 {[%emt 0:00:00]} c5 {[%emt 0:00:00]} 3. d5 {[%emt 0:00:01]} b5 {[%emt 0:00:00]} 4. cxb5 {[%emt 0:00:01]} a6 {[%emt 0:00:01]} 5. bxa6 {[%emt 0:00:01]} g6 {[%emt 0:00:01]} 6. Nc3 {[%emt 0:00:03]} Bg7 {[%emt 0:00:01]} 7. e4 {[%emt 0:00:01]} Qa5 {[%emt 0:00:04]} 8. Bd2 {[%emt 0:00:08]} Bxa6 {[%emt 0:00:02]} 9. Be2 {[%emt 0:00:22]} d6 {[%emt 0:00:08]} 10. Nf3 {[%emt 0:00:03]} O-O {[%emt 0:00:01]} 11. O-O {[%emt 0:00:04]} Nbd7 {[%emt 0:00:03]} 12. Bxa6 {[%emt 0:00:05]} Qxa6 {[%emt 0:00:01]} 13. Qc2 {[%emt 0:00:06]} Rfb8 {[%emt 0:00:16]} 14. a4 {[%emt 0:00:02]} Ne8 {[%emt 0:00:01]} 15. Nb5 {[%emt 0:00:12]} Qb7 {[%emt 0:00:03]} 16. Bc3 {[%emt 0:00:03]} Nc7 {[%emt 0:00:09]} 17. Nxc7 {[%emt 0:00:03]} Qxc7 {[%emt 0:00:02]} 18. Bxg7 {[%emt 0:00:09]} Kxg7 {[%emt 0:00:01]} 19. b3 {[%emt 0:00:01]} Qa5 {[%emt 0:00:40]} 20. Rfb1 {[%emt 0:00:19]} Qb4 {[%emt 0:00:13]} 21. h3 {[%emt 0:00:13]} Rc8 {[%emt 0:00:04]} 22. Nd2 {[%emt 0:00:09]} Qd4 {[%emt 0:01:03]} 23. Qb2 {[%emt 0:00:09]} Qxb2 {[%emt 0:00:04]} 24. Rxb2 {[%emt 0:00:02]} Ne5 {[%emt 0:00:12]} 25. f3 {[%emt 0:00:39]} c4 {[%emt 0:00:08]} 26. Nxc4 {[%emt 0:00:03]} Nxc4 {[%emt 0:00:01]} 27. bxc4 {[%emt 0:00:01]} Rxc4 {[%emt 0:00:01]} 28. a5 {[%emt 0:00:03]} Ra6 {[%emt 0:00:16]} 29. Rb5 {[%emt 0:00:10]} f5 {[%emt 0:00:02]} 30. exf5 gxf5 31. Re1 {[%emt 0:00:06]} Kf7 {[%emt 0:00:02]} 32. Rb7 {[%emt 0:00:02]} Rc5 {[%emt 0:00:01]} 33. Rexe7+ Kf6 34. Re6+ {[%emt 0:00:03]} Kg5 {[%emt 0:00:02]} 35. Rxh7 {[%emt 0:00:06]} Kf4 {[%emt 0:00:03]} 36. Rh4+ {[%emt 0:00:02]} Kg3 {[%emt 0:00:00]} 37. Rg6+ {[%emt 0:00:12]} Kxh4 {[%emt 0:00:01]} 38. Kh2 {[%emt 0:00:02]} Rc2 {[%emt 0:00:02]} 39. f4 {[%emt 0:00:05]} Rxa5 {[%emt 0:00:03]} 40. Rxd6 {[%emt 0:00:02]} Kh5 {[%emt 0:00:02]} 41. Rd8 {[%emt 0:00:03]} Raa2 {[%emt 0:00:02]} 42. Rg8 {[%emt 0:00:02]} Rd2 {[%emt 0:00:01]} 43. Rg5+ {[%emt 0:00:01]} Kh6 {[%emt 0:00:01]} 44. d6 {[%emt 0:00:03]} Rxd6 {[%emt 0:00:01]} 45. Rxf5 {[%emt 0:00:01]} Rdd2 {[%emt 0:00:02]} 46. Rg5 {[%emt 0:00:01]} Rf2 {[%emt 0:00:00]} 47. Rg4 {[%emt 0:00:02]} Kh7 {[%emt 0:00:08]} 48. h4 {[%emt 0:00:02]} Kh6 {[%emt 0:00:02]} 49. Kh3 {[%emt 0:00:04]} Ra3+ {[%emt 0:00:01]} 50. g3 {[%emt 0:00:02]} Raa2 {[%emt 0:00:01]} 51. Rg5 {[%emt 0:00:02]} Rg2 {[%emt 0:00:03]} 52. Rg8 {[%emt 0:00:06]} Rg1 {[%emt 0:00:02]} 53. Rg5 {[%emt 0:00:05]} Rf2 {[%emt 0:00:01]} 54. h5 {[%emt 0:00:12]} Rd2 {[%emt 0:00:03]} 55. Kg4 {[%emt 0:00:02]} Rdg2 {[%emt 0:00:01]} 56. Rg6+ {[%emt 0:00:01]} Kh7 {[%emt 0:00:01]} 57. Kh4 {[%emt 0:00:03]} Rh2+ {[%emt 0:00:03]} 58. Kg4 {[%emt 0:00:01]} Rgh1 {[%emt 0:00:01]} 59. Rg5 {[%emt 0:00:02]} Ra1 {[%emt 0:00:05]} 1/2-1/2

[Event "RUS-ch Blitz Women 2018"]
[Site "Sochi"]
[Date "2018.10.07"]
[Round "10"]
[White "Lysenko, Margarita"]
[Black "Dordzhieva, Dinara"]
[Result "0-1"]
[ECO "A06"]
[WhiteElo "2210"]
[BlackElo "2340"]
[Annotator "NA"]
[PlyCount "88"]
[EventDate "2018.10.07"]
[EventType "swiss"]
[EventCountry "RUS"]
[SourceTitle "playchess.com"]
[Source "ChessBase"]
[SourceQuality "1"]
[TimeControl "180+2"]

1. Nf3 {[%emt 0:00:00]} d5 {[%emt 0:00:00]} 2. g3 {[%emt 0:00:01]} g6 {[%emt 0:00:04]} 3. Bg2 Bg7 4. O-O e5 5. c4 {[%emt 0:00:10]} d4 {[%emt 0:00:03]} 6. e3 {[%emt 0:00:04]} Nc6 {[%emt 0:00:01]} 7. exd4 {[%emt 0:00:06]} exd4 {[%emt 0:00:01]} 8. Re1+ {[%emt 0:00:29]} Nge7 {[%emt 0:00:01]} 9. d3 {[%emt 0:00:02]} O-O {[%emt 0:00:03]} 10. Na3 {[%emt 0:00:06]} h6 {[%emt 0:00:07]} 11. Nc2 {[%emt 0:00:04]} a5 {[%emt 0:00:04]} 12. b3 {[%emt 0:00:04]} Bf5 {[%emt 0:00:09]} 13. Nh4 {[%emt 0:00:07]} Be6 {[%emt 0:00:05]} 14. Rb1 {[%emt 0:00:17]} Qd7 {[%emt 0:00:01]} 15. a3 {[%emt 0:00:08]} Bg4 {[%emt 0:00:09]} 16. Qd2 {[%emt 0:00:24]} Ne5 {[%emt 0:00:17]} 17. f4 {[%emt 0:00:11]} N5c6 {[%emt 0:00:05]} 18. Bb2 {[%emt 0:00:07]} Rfe8 {[%emt 0:00:08]} 19. b4 {[%emt 0:00:03]} axb4 {[%emt 0:00:05]} 20. axb4 {[%emt 0:00:02]} Ra2 {[%emt 0:00:01]} 21. b5 {[%emt 0:00:22]} Nd8 {[%emt 0:00:02]} 22. Nb4 {[%emt 0:00:15]} Ra8 {[%emt 0:00:00]} 23. Nf3 {[%emt 0:00:05]} Nf5 {[%emt 0:00:16]} 24. Ne5 {[%emt 0:00:02]} Bxe5 {[%emt 0:00:01]} 25. fxe5 Ne3 26. Nd5 {[%emt 0:00:06]} Nxd5 {[%emt 0:00:27]} 27. Bxd5 {[%emt 0:00:06]} c6 {[%emt 0:00:04]} 28. Bg2 {[%emt 0:00:13]} cxb5 {[%emt 0:00:12]} 29. cxb5 {[%emt 0:00:12]} Bh3 {[%emt 0:00:01]} 30. Be4 {[%emt 0:00:04]} Ne6 {[%emt 0:00:04]} 31. Qxh6 {[%emt 0:00:03]} Bg4 {[%emt 0:00:05]} 32. Rf1 {[%emt 0:00:04]} Ng7 {[%emt 0:00:06]} 33. Rf6 {[%emt 0:00:04]} Rxe5 {[%emt 0:00:03]} 34. Rbf1 {[%emt 0:00:02]} Rh5 {[%emt 0:00:04]} 35. Qf4 {[%emt 0:00:02]} Bf5 {[%emt 0:00:12]} 36. Bxf5 {[%emt 0:00:03]} Nxf5 {[%emt 0:00:01]} 37. g4 {[%emt 0:00:01]} Rh4 {[%emt 0:00:17]} 38. Qg5 {[%emt 0:00:02]} Qc7 {[%emt 0:00:17]} 39. Rxg6+ {[%emt 0:00:02]} fxg6 {[%emt 0:00:02]} 40. Qxg6+ {[%emt 0:00:01]} Ng7 {[%emt 0:00:01]} 41. Rf2 {[%emt 0:00:03]} Re8 {[%emt 0:00:05]} 42. h3 Rxh3 {[%emt 0:00:01]} 43. Qf6 {[%emt 0:00:05]} Qg3+ {[%emt 0:00:01]} 44. Rg2 {[%emt 0:00:02]} Re1+ {[%emt 0:00:01]} 0-1

[Event "RUS-ch Blitz Women 2018"]
[Site "Sochi"]
[Date "2018.10.07"]
[Round "10"]
[White "Sirotkina, Nina"]
[Black "Maletina, Tatiana"]
[Result "1-0"]
[ECO "D00"]
[WhiteElo "2188"]
[BlackElo "2270"]
[Annotator "NA"]
[PlyCount "70"]
[EventDate "2018.10.07"]
[EventType "swiss"]
[EventCountry "RUS"]
[SourceTitle "playchess.com"]
[Source "ChessBase"]
[SourceQuality "1"]
[TimeControl "180+2"]

1. d4 {[%emt 0:00:00]} d5 {[%emt 0:00:00]} 2. Bf4 {[%emt 0:00:00]} Nf6 {[%emt 0:00:01]} 3. e3 {[%emt 0:00:02]} c5 {[%emt 0:00:01]} 4. c3 {[%emt 0:00:01]} Nc6 {[%emt 0:00:01]} 5. Nd2 {[%emt 0:00:01]} e6 {[%emt 0:00:02]} 6. Ngf3 {[%emt 0:00:02]} cxd4 {[%emt 0:00:01]} 7. exd4 {[%emt 0:00:01]} Nh5 {[%emt 0:00:01]} 8. Bg5 {[%emt 0:00:07]} f6 {[%emt 0:00:01]} 9. Nh4 {[%emt 0:00:25]} g6 {[%emt 0:00:06]} 10. Be3 {[%emt 0:00:03]} f5 {[%emt 0:00:06]} 11. Be2 {[%emt 0:00:09]} Qxh4 {[%emt 0:00:03]} 12. g3 {[%emt 0:00:19]} Qf6 {[%emt 0:00:01]} 13. Bxh5 {[%emt 0:00:02]} gxh5 {[%emt 0:00:01]} 14. Qxh5+ {[%emt 0:00:02]} Qf7 {[%emt 0:00:01]} 15. Qf3 {[%emt 0:00:06]} Bd7 {[%emt 0:00:06]} 16. O-O-O {[%emt 0:00:03]} O-O-O {[%emt 0:00:02]} 17. Bf4 {[%emt 0:00:01]} h5 {[%emt 0:00:08]} 18. Nb3 {[%emt 0:00:07]} b6 {[%emt 0:00:02]} 19. Kb1 {[%emt 0:00:06]} Kb7 {[%emt 0:00:02]} 20. Qd3 {[%emt 0:00:20]} a6 {[%emt 0:00:16]} 21. a4 {[%emt 0:00:17]} Bh6 {[%emt 0:00:23]} 22. Bxh6 {[%emt 0:00:10]} Rxh6 {[%emt 0:00:01]} 23. a5 {[%emt 0:00:00]} Nxa5 {[%emt 0:00:05]} 24. Nxa5+ {[%emt 0:00:04]} bxa5 {[%emt 0:00:02]} 25. c4 {[%emt 0:00:23]} dxc4 {[%emt 0:00:01]} 26. Qxc4 {[%emt 0:00:02]} Bb5 {[%emt 0:00:01]} 27. Qb3 {[%emt 0:00:14]} Qd7 {[%emt 0:00:03]} 28. Rhe1 {[%emt 0:00:07]} Qd5 {[%emt 0:00:03]} 29. Qe3 {[%emt 0:00:08]} Rg6 {[%emt 0:00:10]} 30. Qf4 {[%emt 0:00:07]} Rc8 {[%emt 0:00:07]} 31. Re5 {[%emt 0:00:09]} Qb3 {[%emt 0:00:02]} 32. Qd2 {[%emt 0:00:11]} a4 {[%emt 0:00:17]} 33. d5 {[%emt 0:00:03]} Bc4 {[%emt 0:00:12]} 34. dxe6 {[%emt 0:00:12]} Qa2+ {[%emt 0:00:01]} 35. Kc1 {[%emt 0:00:01]} Bb3+ {[%emt 0:00:03]} 1-0